bitfinex/quotes_BTCUSD_20240815
["timestamp","ask_amount","ask_price","bid_price","bid_amount"]
[1723706941716,1.46194742,57953.0,57951.0,0.0118263]
[1723706941927,1.52849288,57953.0,57951.0,0.0118263]
[1723706942154,2.26849288,57953.0,57951.0,0.0118263]
[1723706942862,1.002426,57952.0,57951.0,0.0118263]
[1723706943071,1.39918415,57952.0,57951.0,0.0118263]
[1723706943291,1.39918415,57952.0,57925.0,0.010663]
[1723706943292,0.01,57937.0,57925.0,0.010663]
[1723706943517,0.01,57937.0,57912.0,6.988e-05]
[1723706943518,0.120896,57901.0,57900.0,0.00341]
[1723706943737,1.51919034,57901.0,57900.0,0.00341]
[1723706943950,1.61007823,57901.0,57900.0,0.00341]
[1723706944182,1.28109034,57901.0,57900.0,0.00141]
[1723706944394,0.614572,57892.0,57891.0,0.01381282]
[1723706944610,1.11698382,57892.0,57891.0,0.01381282]
[1723706945026,1.13339604,57892.0,57891.0,0.01381282]
[1723706945244,1.13339604,57892.0,57880.0,0.06]
[1723706945245,0.34746527,57892.0,57880.0,0.06]
[1723706945502,0.17317841,57891.0,57857.0,0.0719]
[1723706945705,0.17317841,57891.0,57857.0,0.01]
[1723706945706,0.00708282,57871.0,57857.0,0.01]
[1723706945937,0.2996,57882.0,57857.0,0.01]
[1723706946140,0.00708282,57872.0,57863.0,0.120975]
[1723706946362,0.00708282,57875.0,57858.0,0.0786]
[1723706946584,0.023,57881.0,57865.0,0.0651]
[1723706946789,0.52174644,57887.0,57873.0,0.241908]
[1723706946998,0.52174644,57887.0,57866.0,0.49209154]
[1723706946999,0.00708282,57878.0,57866.0,0.320537]
[1723706947214,0.00708282,57885.0,57866.0,0.0786]
[1723706947418,0.00708282,57883.0,57867.0,0.01437]
[1723706947635,0.00708282,57883.0,57867.0,0.01637]
[1723706947850,0.00708282,57885.0,57884.0,0.120931]
[1723706948067,0.00708282,57878.0,57876.0,0.120948]
[1723706948263,0.00708282,57885.0,57867.0,0.01437]
[1723706948473,0.00708282,57884.0,57868.0,0.17155454]
[1723706948673,0.08577727,57890.0,57873.0,0.241908]
[1723706948674,0.00708282,57882.0,57873.0,0.241908]
[1723706948875,0.00708282,57882.0,57869.0,0.17155454]
[1723706949084,0.08577727,57874.0,57866.0,0.0786]
[1723706949297,0.08577727,57874.0,57853.0,0.0154789]
[1723706949298,0.00708282,57858.0,57853.0,0.0154789]
[1723706949739,0.00708282,57859.0,57853.0,0.0154789]
[1723706949948,0.00708282,57864.0,57853.0,0.2574669]
[1723706950156,0.17155454,57873.0,57853.0,0.0154789]
[1723706950157,0.00708282,57859.0,57853.0,0.0154789]
[1723706950404,0.12806782,57858.0,57853.0,0.0154789]
[1723706950610,0.03008282,57858.0,57853.0,0.0154789]
[1723706950812,0.20163736,57858.0,57853.0,0.0154789]
[1723706951019,0.20163736,57858.0,57857.0,0.011]
[1723706951226,0.2218011,57858.0,57857.0,0.011]
[1723706951438,0.6601571,57858.0,57857.0,0.011]
[1723706951675,0.63999336,57858.0,57857.0,0.011]
[1723706951879,0.88196436,57858.0,57857.0,0.011]
[1723706952087,0.88196436,57858.0,57857.0,0.013]
[1723706952304,0.88196436,57858.0,57857.0,0.011]
[1723706952305,1.22393536,57858.0,57857.0,0.011]
[1723706952518,1.37910352,57858.0,57857.0,0.011]
[1723706952720,1.37910352,57858.0,57857.0,0.001]
[1723706952721,1.38810352,57858.0,57857.0,0.001]
[1723706952929,2.00996238,57858.0,57857.0,1e-06]
[1723706953138,1.05486436,57858.0,57857.0,1e-06]
[1723706953337,1.04825323,57858.0,57857.0,1e-06]
[1723706953543,1.29822423,57858.0,57857.0,1e-06]
[1723706953744,0.12808082,57852.0,57851.0,0.00324219]
[1723706953954,0.27863736,57852.0,57851.0,0.00324219]
[1723706954165,0.17863736,57852.0,57851.0,0.00324219]
[1723706955019,0.39963536,57852.0,57851.0,0.00324219]
[1723706955241,0.41363536,57852.0,57851.0,0.00324219]
[1723706955492,0.014,57852.0,57851.0,0.12424219]
[1723706955751,0.014,57852.0,57851.0,1.14528395]
[1723706955752,0.028,57852.0,57851.0,1.14528395]
[1723706955960,0.014,57852.0,57851.0,1.14528395]
[1723706956165,0.00708282,57873.0,57872.0,0.120956]
[1723706956378,0.00708282,57873.0,57857.0,0.241973]
[1723706956379,0.00708282,57866.0,57857.0,0.241973]
[1723706956587,0.17155454,57873.0,57864.0,0.241946]
[1723706956588,0.00708282,57868.0,57864.0,0.241946]
[1723706956797,0.00708282,57873.0,57865.0,0.0241946]
[1723706957006,0.00708282,57875.0,57867.0,0.241933]
[1723706957208,0.0654,57892.0,57859.0,0.08577727]
[1723706957209,0.00708282,57873.0,57859.0,0.08577727]
[1723706957431,0.00708282,57876.0,57874.0,0.120951]
[1723706957641,0.00708282,57879.0,57878.0,0.120944]
[1723706958127,0.00708282,57880.0,57879.0,0.120941]
[1723706958336,0.00708282,57877.0,57874.0,0.0663]
[1723706958551,0.16557727,57891.0,57870.0,0.323017]
[1723706958552,0.00708282,57872.0,57870.0,0.0811]
[1723706958800,0.00708282,57872.0,57871.0,0.120958]
[1723706959028,0.014,57875.0,57874.0,0.60476]
[1723706959237,0.014,57875.0,57874.0,0.362856]
[1723706959438,0.00708282,57873.0,57871.0,0.120957]
[1723706959645,0.00708282,57873.0,57871.0,0.2863154]
[1723706959853,0.00708282,57874.0,57870.0,0.0811]
[1723706960265,0.00708282,57874.0,57871.0,0.120957]
[1723706960469,0.00708282,57874.0,57870.0,0.0811]
[1723706960674,0.00708282,57871.0,57870.0,0.12096]
[1723706960883,0.00708282,57867.0,57866.0,0.241937]
[1723706961228,0.00708282,57873.0,57865.0,0.01431]
[1723706961445,0.009,57879.0,57878.0,0.362832]
[1723706961693,0.00708282,57880.0,57879.0,0.120941]
[1723706961956,0.00708282,57880.0,57879.0,0.362824]
[1723706962202,0.00708282,57882.0,57881.0,0.120937]
[1723706962447,0.00708282,57886.0,57870.0,0.3006]
[1723706962688,0.32758627,57897.0,57870.0,0.3006]
[1723706962689,0.00708282,57882.0,57871.0,0.27155454]
[1723706962932,0.011,57880.0,57879.0,0.001]
[1723706963161,0.62277982,57880.0,57879.0,0.001]
[1723706963361,0.70367982,57880.0,57879.0,0.001]
[1723706963770,0.97523436,57880.0,57879.0,0.001]
[1723706963979,0.11808282,57880.0,57879.0,0.001]
[1723706964261,0.00708282,57877.0,57876.0,0.362844]
[1723706964508,0.00708282,57878.0,57876.0,0.2781804]
[1723706964717,0.1,57879.0,57878.0,0.120944]
[1723706965161,0.00708282,57877.0,57876.0,0.0362844]
[1723706965358,0.00708282,57876.0,57870.0,0.24192]
[1723706965582,0.00708282,57870.0,57855.0,0.2996]
[1723706965836,0.00708282,57870.0,57865.0,0.256252]
[1723706966040,0.241893,57877.0,57865.0,0.256252]
[1723706966041,0.00708282,57868.0,57865.0,0.13528]
[1723706966254,0.08577727,57878.0,57865.0,0.13528]
[1723706966255,0.00708282,57870.0,57865.0,0.01431]
[1723706966456,0.00708282,57868.0,57867.0,0.241934]
[1723706966670,0.00708282,57868.0,57867.0,0.120967]
[1723706966884,0.00708282,57868.0,57856.0,0.29893495]
[1723706966885,0.00708282,57857.0,57856.0,0.37393495]
[1723706967106,0.00708282,57852.0,57847.0,0.0817]
[1723706967312,0.14447923,57852.0,57846.0,0.027]
[1723706967524,0.16747923,57852.0,57846.0,0.027]
[1723706967747,0.58102977,57852.0,57846.0,0.027]
[1723706967968,0.04648123,57852.0,57846.0,0.027]
[1723706968179,0.04648123,57852.0,57846.0,0.14801]
[1723706968379,0.04748123,57852.0,57851.0,0.01506419]
[1723706968588,0.02548123,57852.0,57851.0,0.03367141]
[1723706968818,0.01839841,57852.0,57851.0,0.15467141]
[1723706969031,0.01839841,57852.0,57851.0,0.63867341]
[1723706969247,0.01839841,57852.0,57851.0,1.05222895]
[1723706969453,0.01839841,57852.0,57851.0,0.47327241]
[1723706969705,0.01839841,57852.0,57851.0,0.02006419]
[1723706969706,0.86182906,57852.0,57851.0,0.02006419]
[1723706969904,1.12071046,57852.0,57851.0,0.02006419]
[1723706970105,1.22071046,57852.0,57851.0,0.02006419]
[1723706970319,1.34278151,57852.0,57851.0,0.02006419]
[1723706970522,1.24371046,57852.0,57851.0,0.02006419]
[1723706970727,1.00071446,57852.0,57851.0,0.00906419]
[1723706971016,0.99971446,57852.0,57851.0,0.00506419]
[1723706971248,1.01271446,57852.0,57851.0,0.00506419]
[1723706971493,1.00671446,57852.0,57851.0,0.00406419]
[1723706972007,0.76471846,57852.0,57851.0,0.00406419]
[1723706972303,1.10738461,57852.0,57851.0,0.00406419]
[1723706972537,1.49468061,57852.0,57851.0,0.01246419]
[1723706973364,1.15201446,57852.0,57851.0,0.01246419]
[1723706973870,1.15201446,57852.0,57851.0,0.01346419]
[1723706973871,1.15801446,57852.0,57851.0,0.01346419]
[1723706973877,0.89301846,57852.0,57851.0,0.01346419]
[1723706974145,0.73001846,57852.0,57851.0,0.01346419]
[1723706974387,1.40641031,57852.0,57851.0,0.01346419]
[1723706974649,1.40641031,57852.0,57851.0,0.0014682]
[1723706974650,1.06721446,57852.0,57851.0,0.0014682]
[1723706975162,0.67071846,57852.0,57851.0,0.0014682]
[1723706975426,0.11316992,57852.0,57851.0,0.0019682]
[1723706975677,0.11316251,57852.0,57851.0,0.0019682]
[1723706975942,0.0494375,57852.0,57851.0,0.0019682]
[1723706976178,0.11316344,57852.0,57851.0,0.0019682]
[1723706976443,0.97548525,57852.0,57851.0,0.0019682]
[1723706976708,1.21148125,57852.0,57851.0,0.0009682]
[1723706976956,1.56447725,57852.0,57851.0,0.0009682]
[1723706977164,1.69897725,57852.0,57851.0,0.0009682]
[1723706977368,1.72197725,57852.0,57851.0,0.0009682]
[1723706977583,1.49298125,57852.0,57851.0,0.0009682]
[1723706979066,1.39990063,57852.0,57851.0,0.0009682]
[1723706979289,0.12809082,57847.0,57846.0,0.02692958]
[1723706979493,1.14869636,57847.0,57846.0,0.02692958]
[1723706979697,0.99979122,57847.0,57846.0,0.02692958]
[1723706979901,0.39275722,57847.0,57846.0,0.02692958]
[1723706980316,0.63477422,57847.0,57846.0,0.02692958]
[1723706980520,0.63977422,57847.0,57846.0,0.02692958]
[1723706980741,0.27674922,57847.0,57846.0,0.02692958]
[1723706980946,0.10519468,57847.0,57846.0,0.02692958]
[1723706981150,0.06485007,57847.0,57846.0,0.05004424]
[1723706981361,0.06485007,57847.0,57846.0,0.02692958]
[1723706981568,0.1246664,57847.0,57846.0,0.02692958]
[1723706981774,0.18585807,57847.0,57846.0,0.02692958]
[1723706981978,0.06485007,57847.0,57846.0,0.02692958]
[1723706982393,0.88879122,57847.0,57846.0,0.02692958]
[1723706982808,0.64678415,57847.0,57846.0,0.02692958]
[1723706983224,0.88880115,57847.0,57846.0,0.02692958]
[1723706983432,0.64678415,57847.0,57846.0,0.02692958]
[1723706983637,0.91180115,57847.0,57846.0,0.02692958]
[1723706986316,0.91179555,57847.0,57846.0,0.02692958]
[1723706986523,0.81867936,57847.0,57846.0,0.02692958]
[1723706986727,0.91178939,57847.0,57846.0,0.02692958]
[1723706987511,0.40475539,57847.0,57846.0,0.02692958]
[1723706987749,0.06484912,57847.0,57846.0,0.02692958]
[1723706987993,0.48768435,57847.0,57846.0,0.02692958]
[1723706988230,0.18585712,57847.0,57846.0,0.02692958]
[1723706988476,0.42787412,57847.0,57846.0,0.02692958]
[1723706988776,0.66989112,57847.0,57846.0,0.02692958]
[1723706988956,0.11219285,57847.0,57846.0,0.02692958]
[1723706989171,0.06484912,57847.0,57846.0,0.04172434]
[1723706989379,0.78024913,57847.0,57846.0,0.02692958]
[1723706989646,0.40475539,57847.0,57846.0,0.02692958]
[1723706989892,0.06485254,57847.0,57846.0,0.02692958]
[1723706990149,0.06485254,57847.0,57846.0,0.14793958]
[1723706990385,0.06485254,57847.0,57846.0,0.18693674]
[1723706990648,0.06485254,57847.0,57846.0,0.42895774]
[1723706990649,0.02840322,57847.0,57846.0,0.42895774]
[1723706990882,0.02840322,57847.0,57846.0,0.14552674]
[1723706991121,0.012,57847.0,57846.0,0.43809128]
[1723706991363,0.012,57847.0,57846.0,1.22545428]
[1723706991622,0.007,57847.0,57846.0,0.98343328]
[1723706992103,0.012,57847.0,57846.0,0.81187874]
[1723706992343,0.012,57847.0,57846.0,0.56985774]
[1723706992602,0.01408282,57847.0,57846.0,0.20682674]
[1723706992813,0.008,57847.0,57846.0,0.57185774]
[1723706993022,0.008,57847.0,57846.0,0.57268174]
[1723706993023,0.001,57847.0,57846.0,0.57268174]
[1723706993278,0.0019064,57847.0,57846.0,0.33066074]
[1723706993521,0.0089064,57847.0,57846.0,0.81470274]
[1723706993740,0.0019064,57847.0,57846.0,0.81470274]
[1723706994759,0.0019064,57847.0,57846.0,0.98425728]
[1723706994760,0.0009064,57847.0,57846.0,0.98425728]
[1723706994993,0.0009064,57847.0,57846.0,0.81470274]
[1723706995500,0.0009064,57847.0,57846.0,0.81270274]
[1723706995735,0.0009064,57847.0,57846.0,0.57068174]
[1723706995973,0.0009064,57847.0,57846.0,0.57368174]
[1723706996215,0.0009064,57847.0,57846.0,1.22927828]
[1723706996621,0.0009064,57847.0,57846.0,1.22627828]
[1723706996831,0.0009064,57847.0,57846.0,1.22827828]
[1723706997036,0.0009064,57847.0,57846.0,1.22927828]
[1723706997464,0.0009064,57847.0,57846.0,1.47029928]
[1723706997888,0.0019064,57847.0,57846.0,1.47229928]
[1723706998130,0.0019064,57847.0,57846.0,1.46829928]
[1723706998368,0.0009064,57847.0,57846.0,1.46829928]
[1723706998575,0.0019064,57847.0,57846.0,1.47329928]
[1723706998781,0.0009053,57870.0,57869.0,0.120962]
[1723706998984,0.0009053,57870.0,57869.0,0.5175832]
[1723706999190,0.0009053,57870.0,57869.0,0.7595082]
[1723706999826,0.0009053,57870.0,57869.0,0.93106274]
[1723707000032,0.0009053,57870.0,57869.0,1.46788774]
[1723707000275,0.0109053,57870.0,57869.0,1.46888774]
[1723707000719,0.0009053,57870.0,57869.0,1.46788774]
[1723707000919,0.0009053,57870.0,57869.0,0.0767]
[1723707000920,0.00798812,57870.0,57869.0,0.0767]
[1723707001129,0.0009053,57870.0,57869.0,0.197662]
[1723707001335,0.0089053,57870.0,57869.0,0.198662]
[1723707001540,0.0089053,57870.0,57869.0,0.440587]
[1723707001745,0.0009053,57870.0,57869.0,0.47620067]
[1723707002164,0.0019053,57870.0,57869.0,1.13860521]
[1723707002544,0.0019053,57870.0,57869.0,1.13160521]
[1723707002744,0.0009053,57870.0,57869.0,1.13160521]
[1723707002978,0.0009053,57870.0,57869.0,1.13260521]
[1723707003187,0.0009053,57870.0,57869.0,1.12860521]
[1723707003766,0.0009053,57870.0,57869.0,1.43223021]
[1723707003990,0.0019053,57870.0,57869.0,1.43223021]
[1723707004229,0.0019053,57870.0,57869.0,1.53123021]
[1723707004431,0.0009053,57870.0,57869.0,1.53123021]
[1723707004635,0.0009053,57870.0,57869.0,1.53823021]
[1723707004636,0.0019053,57870.0,57869.0,1.53823021]
[1723707004964,0.0009053,57878.0,57877.0,1.233214]
[1723707005122,0.0009053,57878.0,57877.0,1.8436657]
[1723707005747,0.007083,57902.0,57901.0,0.120896]
[1723707006092,0.00906401,57905.0,57904.0,0.362668]
[1723707006208,0.00906401,57905.0,57904.0,1.01778054]
[1723707006664,0.00906401,57905.0,57904.0,1.09828054]
[1723707006869,0.00906401,57905.0,57904.0,0.88911521]
[1723707007235,0.00906401,57905.0,57904.0,1.13089421]
[1723707007438,0.00906401,57905.0,57904.0,0.88911521]
[1723707007644,0.00906401,57905.0,57904.0,0.64733621]
[1723707008482,0.00906401,57905.0,57904.0,0.64833621]
[1723707008852,0.00906401,57905.0,57904.0,0.40655721]
[1723707009082,0.00906401,57905.0,57904.0,0.88911521]
[1723707009278,0.01006401,57905.0,57904.0,0.88911521]
[1723707009479,0.01206401,57905.0,57904.0,0.88911521]
[1723707009927,0.01106401,57905.0,57904.0,1.13089421]
[1723707010130,0.01106401,57905.0,57904.0,1.19719421]
[1723707010407,0.01106401,57905.0,57904.0,0.47185721]
[1723707010619,0.01106401,57905.0,57904.0,0.95541521]
[1723707010830,0.01106401,57905.0,57902.0,0.241786]
[1723707011058,0.01106401,57905.0,57900.0,0.442]
[1723707011059,0.00906401,57905.0,57904.0,0.604447]
[1723707011281,0.01406401,57905.0,57904.0,0.53422254]
[1723707011486,0.00906401,57905.0,57904.0,0.001]
[1723707011735,0.00906401,57905.0,57904.0,0.53522254]
[1723707011946,0.01006401,57905.0,57904.0,0.77600154]
[1723707012154,0.00906401,57905.0,57904.0,1.01778054]
[1723707012371,0.00906401,57905.0,57904.0,1.10038054]
[1723707012783,0.00906401,57905.0,57904.0,1.09838054]
[1723707012984,0.009053,57910.0,57909.0,0.604395]
[1723707013193,0.009053,57910.0,57909.0,0.77594954]
[1723707013400,0.009053,57910.0,57909.0,0.29243354]
[1723707013839,0.009053,57910.0,57909.0,0.77594954]
[1723707014042,0.009053,57910.0,57909.0,1.01770754]
[1723707014462,0.009053,57910.0,57909.0,1.09850754]
[1723707015582,0.009053,57910.0,57909.0,1.44426554]
[1723707015792,0.009053,57910.0,57909.0,1.50466554]
[1723707015989,0.009053,57910.0,57909.0,1.50266554]
[1723707016404,0.009053,57910.0,57909.0,1.50066554]
[1723707016814,0.009053,57910.0,57909.0,1.50366554]
[1723707017036,0.009053,57910.0,57909.0,1.50266554]
[1723707017542,0.010053,57910.0,57909.0,1.51666554]
[1723707018044,0.010053,57910.0,57909.0,1.51466554]
[1723707018540,0.011053,57910.0,57909.0,0.94114954]
[1723707019405,0.011053,57910.0,57909.0,1.18290754]
[1723707020771,0.011053,57910.0,57909.0,0.94114954]
[1723707023460,0.011053,57910.0,57909.0,1.18290754]
[1723707023660,0.011053,57910.0,57909.0,1.28290754]
[1723707024160,0.011053,57910.0,57909.0,1.04114954]
[1723707024777,0.011053,57910.0,57909.0,1.28290754]
[1723707025992,0.011053,57910.0,57909.0,1.04114954]
[1723707026192,0.01813582,57910.0,57909.0,0.024]
[1723707026419,0.75762082,57910.0,57909.0,0.024]
[1723707026627,1.19392936,57910.0,57909.0,0.024]
[1723707027034,1.29392936,57910.0,57909.0,0.024]
[1723707027237,1.29392936,57910.0,57876.0,0.241895]
[1723707027238,0.00708282,57883.0,57876.0,0.241895]
[1723707027410,0.00708282,57881.0,57879.0,0.12094]
[1723707027641,0.00708282,57881.0,57876.0,0.241895]
[1723707027642,0.00708282,57885.0,57880.0,0.120939]
[1723707027850,0.00708282,57883.0,57881.0,0.120937]
[1723707028050,0.00708282,57889.0,57884.0,0.241862]
[1723707028229,0.00708282,57889.0,57882.0,0.0362819]
[1723707028230,0.00708282,57886.0,57882.0,0.1572159]
[1723707028468,0.00708282,57888.0,57883.0,0.29248754]
[1723707028675,0.00708282,57883.0,57879.0,0.001]
[1723707028882,0.08577727,57886.0,57879.0,0.001]
[1723707028883,0.27499909,57880.0,57879.0,0.001]
[1723707029159,0.75875709,57880.0,57879.0,0.001]
[1723707029393,0.00708282,57872.0,57860.0,0.59236362]
[1723707029590,0.00708282,57872.0,57867.0,0.120965]
[1723707029793,0.00708282,57871.0,57870.0,0.0121788]
[1723707029997,0.00708282,57872.0,57865.0,0.241939]
[1723707030256,0.00708282,57871.0,57870.0,0.12096]
[1723707030499,0.00708282,57871.0,57868.0,0.241926]
[1723707030500,0.00708282,57872.0,57871.0,0.120958]
[1723707031035,0.00708282,57872.0,57862.0,0.241951]
[1723707031251,0.00708282,57870.0,57859.0,0.241964]
[1723707031466,0.00708282,57870.0,57861.0,0.120978]
[1723707031474,0.12804282,57870.0,57861.0,0.120978]
[1723707031681,0.004,57872.0,57856.0,0.0767]
[1723707031881,0.01108282,57872.0,57871.0,0.120958]
[1723707032080,0.00708282,57871.0,57868.0,0.120963]
[1723707032190,0.00708282,57870.0,57859.0,0.241964]
[1723707032395,0.21382009,57870.0,57862.0,0.120976]
[1723707032595,0.12804282,57870.0,57859.0,0.241964]
[1723707032797,0.45574109,57870.0,57858.0,0.120985]
[1723707033003,0.45574109,57870.0,57856.0,0.241977]
[1723707033004,0.77546209,57870.0,57856.0,0.241977]
[1723707033373,0.77546209,57870.0,57858.0,0.120984]
[1723707033570,0.77546209,57870.0,57848.0,0.242009]
[1723707033571,1.07948309,57870.0,57848.0,0.242009]
[1723707033719,1.39045366,57870.0,57848.0,0.242009]
[1723707033921,1.39045366,57870.0,57855.0,0.12099]
[1723707034355,1.40845366,57870.0,57849.0,0.121003]
[1723707034732,1.77842003,57870.0,57847.0,0.00821]
[1723707034968,1.65337466,57870.0,57847.0,0.00821]
[1723707035407,1.65337529,57870.0,57847.0,0.00821]
[1723707035902,1.65337529,57870.0,57848.0,0.121006]
[1723707035903,1.64637529,57870.0,57848.0,0.121006]
[1723707036150,1.64637529,57870.0,57847.0,0.00821]
[1723707036151,0.64686382,57870.0,57853.0,0.241989]
[1723707036393,0.16098282,57870.0,57863.0,0.120973]
[1723707036671,0.52386382,57870.0,57856.0,0.241977]
[1723707036906,0.75178482,57870.0,57853.0,0.241991]
[1723707037137,1.16526036,57870.0,57847.0,0.00821]
[1723707037353,1.19326036,57870.0,57850.0,0.121002]
[1723707037570,1.17926036,57870.0,57847.0,0.00821]
[1723707037834,1.28826036,57870.0,57848.0,0.242009]
[1723707038076,1.30226036,57870.0,57848.0,0.242009]
[1723707038324,1.44106412,57870.0,57847.0,0.00821]
[1723707038544,1.30226036,57870.0,57849.0,0.121003]
[1723707038775,0.00708282,57858.0,57846.0,0.02275358]
[1723707038990,0.00708282,57858.0,57846.0,0.01605898]
[1723707038991,1.07821909,57847.0,57846.0,0.01605898]
[1723707039206,1.17821909,57847.0,57846.0,0.01605898]
[1723707039903,1.46759554,57847.0,57846.0,0.01605898]
[1723707040131,1.49059554,57847.0,57846.0,0.01605898]
[1723707040344,1.50459554,57847.0,57846.0,0.01605898]
[1723707040554,1.75661254,57847.0,57846.0,0.01605898]
[1723707040762,1.73261254,57847.0,57846.0,0.01605898]
[1723707041014,0.85427482,57838.0,57831.0,0.0066785]
[1723707041228,1.26512936,57838.0,57831.0,0.0066785]
[1723707041432,0.00708282,57819.0,57814.0,0.02733923]
[1723707041639,0.00708282,57820.0,57815.0,0.03383043]
[1723707041859,0.00708282,57820.0,57819.0,0.363201]
[1723707042075,0.24208,57832.0,57821.0,0.121063]
[1723707042076,0.00708282,57822.0,57821.0,0.121063]
[1723707042335,0.00708282,57820.0,57814.0,0.02733923]
[1723707042533,0.00708282,57820.0,57814.0,0.26949123]
[1723707042743,0.00708282,57820.0,57814.0,0.02733923]
[1723707042947,0.00708282,57820.0,57815.0,0.242148]
[1723707043153,0.00708282,57816.0,57814.0,0.02733923]
[1723707043363,0.320111,57825.0,57812.0,7.009e-05]
[1723707043364,0.00708282,57815.0,57812.0,7.009e-05]
[1723707043572,0.00708282,57815.0,57814.0,0.121077]
[1723707043786,0.12816282,57813.0,57812.0,7.009e-05]
[1723707044009,0.21016282,57813.0,57812.0,7.009e-05]
[1723707044218,0.86603736,57813.0,57812.0,7.009e-05]
[1723707044446,0.00708282,57813.0,57812.0,7.009e-05]
[1723707044650,0.00708282,57814.0,57812.0,7.009e-05]
[1723707044861,0.00708282,57814.0,57813.0,0.01402471]
[1723707045070,0.082,57817.0,57812.0,7.009e-05]
[1723707045071,0.00708282,57813.0,57812.0,7.009e-05]
[1723707045293,0.29971736,57813.0,57812.0,7.009e-05]
[1723707045521,0.31071736,57813.0,57812.0,7.009e-05]
[1723707045732,0.38132282,57813.0,57812.0,7.009e-05]
[1723707046399,0.55287736,57813.0,57812.0,7.009e-05]
[1723707046607,0.62857736,57813.0,57812.0,7.009e-05]
[1723707046811,0.61757736,57813.0,57812.0,7.009e-05]
[1723707047020,0.64057736,57813.0,57812.0,7.009e-05]
[1723707047240,0.37541736,57813.0,57812.0,7.009e-05]
[1723707047484,0.37541736,57813.0,57800.0,0.084]
[1723707047485,0.27077282,57808.0,57800.0,0.084]
[1723707047681,0.68450836,57808.0,57800.0,0.084]
[1723707047903,0.27077282,57808.0,57800.0,0.084]
[1723707048121,0.14968282,57808.0,57800.0,0.084]
[1723707048334,0.20717282,57808.0,57807.0,0.00321]
[1723707048542,0.08608282,57808.0,57807.0,0.00321]
[1723707048757,0.00708282,57808.0,57807.0,0.00321]
[1723707049620,0.00708282,57808.0,57807.0,0.0156407]
[1723707050088,0.00708282,57808.0,57807.0,0.00321]
[1723707050326,0.02108282,57808.0,57807.0,0.00321]
[1723707050590,0.00708282,57814.0,57807.0,0.41694954]
[1723707050799,0.242121,57823.0,57807.0,0.00904776]
[1723707050800,0.00708282,57811.0,57807.0,0.00904776]
[1723707051006,0.014,57808.0,57807.0,0.13013876]
[1723707051219,0.028,57808.0,57807.0,0.37232376]
[1723707051436,0.014,57808.0,57807.0,0.61978038]
[1723707051651,0.00708282,57820.0,57807.0,0.25650438]
[1723707051870,0.013,57814.0,57813.0,0.36324]
[1723707052077,0.027,57814.0,57813.0,0.53479454]
[1723707052278,0.027,57814.0,57813.0,0.78329882]
[1723707052492,0.027,57814.0,57813.0,0.54113882]
[1723707052734,0.027,57814.0,57813.0,0.8616303]
[1723707052973,0.027,57814.0,57813.0,0.6194703]
[1723707053235,0.027,57814.0,57813.0,0.44791576]
[1723707053459,0.014,57814.0,57813.0,0.20575576]
[1723707053696,0.38431482,57814.0,57813.0,0.00634428]
[1723707053964,0.61246982,57814.0,57813.0,0.00634428]
[1723707054179,0.61246982,57814.0,57807.0,0.00321]
[1723707054180,0.00708282,57814.0,57807.0,0.00321]
[1723707054387,0.01408282,57808.0,57807.0,0.00121]
[1723707054591,0.00708282,57808.0,57807.0,0.00121]
[1723707055249,0.019,57814.0,57807.0,0.122301]
[1723707055250,0.00708282,57811.0,57807.0,0.122301]
[1723707055482,0.00708282,57808.0,57807.0,0.00121]
[1723707055729,0.01408282,57808.0,57807.0,0.00121]
[1723707055986,0.01408282,57808.0,57807.0,0.0134407]
[1723707056517,0.13517282,57808.0,57807.0,0.00121]
[1723707056758,0.70283482,57808.0,57807.0,0.00121]
[1723707057005,0.96016663,57808.0,57807.0,0.00121]
[1723707057195,0.99555712,57808.0,57807.0,0.00121]
[1723707057672,0.97655712,57808.0,57807.0,0.00121]
[1723707057901,0.34895431,57808.0,57807.0,0.00121]
[1723707058108,0.64859885,57808.0,57807.0,0.00121]
[1723707058314,0.47470615,57808.0,57807.0,0.00121]
[1723707058524,0.03213515,57808.0,57807.0,0.00121]
[1723707058729,0.13683466,57808.0,57807.0,0.00121]
[1723707058945,2.22824044,57808.0,57807.0,0.00121]
[1723707059407,0.00474466,57805.0,57800.0,0.08021]
[1723707059666,0.00474466,57805.0,57802.0,0.242205]
[1723707059915,0.00474466,57806.0,57802.0,0.242205]
[1723707060151,0.00474466,57805.0,57802.0,0.242203]
[1723707060370,0.00474466,57805.0,57801.0,0.008842]
[1723707060625,0.00474466,57802.0,57801.0,0.008842]
[1723707061108,0.00474466,57801.0,57800.0,0.08021]
[1723707061370,0.12584966,57801.0,57800.0,0.08021]
[1723707061663,0.38445399,57801.0,57800.0,0.08021]
[1723707061906,0.02113899,57801.0,57800.0,0.08021]
[1723707062150,0.38445145,57801.0,57800.0,0.08021]
[1723707062381,1.27903054,57801.0,57800.0,0.08021]
[1723707062587,1.23687332,57801.0,57800.0,0.08021]
[1723707062802,1.62739678,57801.0,57800.0,0.08021]
[1723707063013,1.38518678,57801.0,57800.0,0.08021]
[1723707063656,1.38418678,57801.0,57800.0,0.08021]
[1723707063861,1.52260546,57801.0,57800.0,0.08021]
[1723707065116,1.53660546,57801.0,57800.0,0.08021]
[1723707065328,1.38418678,57801.0,57800.0,0.08021]
[1723707065553,0.79982487,57801.0,57800.0,0.081032]
[1723707065765,0.11185533,57801.0,57800.0,0.081032]
[1723707065976,0.12433438,57801.0,57800.0,0.081032]
[1723707066406,0.06451044,57801.0,57800.0,0.081032]
[1723707066617,0.11959377,57801.0,57800.0,0.4532772]
[1723707066841,0.03040144,57801.0,57800.0,1.0186052]
[1723707067048,0.00474466,57806.0,57801.0,0.242208]
[1723707067267,0.00474466,57806.0,57800.0,0.34241074]
[1723707067268,0.00474466,57808.0,57807.0,0.121092]
[1723707067479,0.04578525,57808.0,57807.0,0.847647]
[1723707067700,0.01640825,57808.0,57807.0,1.10010154]
[1723707067923,0.4764,57826.0,57807.0,1.10010154]
[1723707067924,0.00474466,57811.0,57810.0,0.363258]
[1723707068145,0.02115434,57811.0,57810.0,0.363258]
[1723707068355,0.05053346,57811.0,57810.0,0.363258]
[1723707068576,0.05053346,57811.0,57810.0,0.41757722]
[1723707068577,0.09789985,57811.0,57810.0,0.41757722]
[1723707068814,0.0457888,57811.0,57810.0,0.65974922]
[1723707069006,0.00474466,57817.0,57816.0,0.36322]
[1723707069236,0.00474466,57817.0,57816.0,0.883836]
[1723707069237,0.04579343,57817.0,57816.0,0.883836]
[1723707069442,0.00474466,57818.0,57817.0,0.605357]
[1723707069655,0.04737459,57826.0,57822.0,0.0654]
[1723707069656,0.00474466,57824.0,57822.0,0.0654]